bitfinex/quotes_BTCUSD_20241223
["timestamp","ask_amount","ask_price","bid_price","bid_amount"]
[1734933710493,0.5197106,95641.0,95627.0,0.02644471]
[1734933711879,0.3105946,95641.0,95628.0,0.209143]
[1734933712052,0.1014796,95641.0,95628.0,0.209143]
[1734933713205,0.209117,95640.0,95628.0,0.209143]
[1734933713612,0.209117,95640.0,95628.0,0.210143]
[1734933714617,0.1014796,95641.0,95628.0,0.209143]
[1734933714841,0.1014796,95641.0,95629.0,0.0803]
[1734933715051,0.0001712,95641.0,95631.0,0.07434471]
[1734933715256,0.0001712,95641.0,95637.0,0.209123]
[1734933715679,0.0001712,95641.0,95637.0,0.418246]
[1734933716099,0.0001712,95641.0,95639.0,0.23556371]
[1734933716310,0.0001712,95641.0,95640.0,0.00104542]
[1734933716523,0.0001712,95641.0,95640.0,0.12924542]
[1734933717775,0.0001712,95641.0,95640.0,0.13824542]
[1734933717917,0.0001712,95641.0,95640.0,0.16469013]
[1734933718119,0.0001712,95641.0,95640.0,0.16869013]
[1734933718911,0.0001712,95641.0,95640.0,0.16469013]
[1734933719107,0.0001712,95641.0,95640.0,0.17507421]
[1734933719343,0.0001712,95641.0,95640.0,0.17007421]
[1734933719529,0.0001712,95641.0,95640.0,0.17907421]
[1734933719794,0.0001712,95641.0,95640.0,0.17007421]
[1734933720196,0.0001712,95641.0,95640.0,0.17207421]
[1734933720319,0.0001712,95641.0,95640.0,0.17007421]
[1734933720520,0.0001712,95641.0,95640.0,0.16607421]
[1734933720769,0.0001712,95641.0,95640.0,0.26962516]
[1734933720971,0.0001712,95641.0,95640.0,0.26857974]
[1734933721171,0.0001712,95641.0,95640.0,0.24113503]
[1734933721373,0.0001712,95641.0,95640.0,0.10255095]
[1734933722058,0.0001712,95641.0,95640.0,0.13399566]
[1734933722258,0.0001712,95641.0,95640.0,0.12084471]
[1734933722593,0.0001712,95641.0,95640.0,0.12189022]
[1734933722727,0.0001712,95641.0,95640.0,0.11289022]
[1734933723131,0.0001712,95641.0,95640.0,0.12189022]
[1734933723472,0.0001712,95641.0,95640.0,0.10789022]
[1734933723677,0.0001712,95641.0,95640.0,0.11389022]
[1734933723879,0.0001712,95641.0,95640.0,0.11789022]
[1734933724287,0.0001712,95641.0,95640.0,0.12289022]
[1734933724645,0.0001712,95641.0,95640.0,0.12789022]
[1734933725624,0.0001712,95641.0,95640.0,0.12289022]
[1734933725746,0.0001712,95641.0,95640.0,0.10789022]
[1734933726722,0.0001712,95641.0,95640.0,0.26689022]
[1734933726925,0.0001712,95641.0,95640.0,0.41534471]
[1734933727135,0.0001712,95641.0,95640.0,0.51665311]
[1734933727343,0.0001712,95641.0,95640.0,0.53965311]
[1734933728294,0.0001712,95641.0,95640.0,0.54465311]
[1734933728892,0.0001712,95641.0,95640.0,0.53065311]
[1734933729929,0.0001712,95641.0,95640.0,0.43065311]
[1734933730132,0.0021712,95641.0,95640.0,0.43065311]
[1734933730566,0.0001712,95641.0,95640.0,0.43065311]
[1734933731007,0.0021712,95641.0,95640.0,0.57087093]
[1734933731509,0.0021712,95641.0,95640.0,0.44656253]
[1734933731638,0.0021712,95641.0,95640.0,0.3998093]
[1734933731837,0.0001712,95641.0,95640.0,0.3998093]
[1734933732846,0.0001712,95641.0,95640.0,0.30634471]
[1734933733847,0.0021712,95641.0,95640.0,0.30634471]
[1734933734246,0.0001712,95641.0,95640.0,0.30634471]
[1734933734642,0.0021712,95641.0,95640.0,0.30634471]
[1734933737912,0.0001712,95641.0,95640.0,0.30634471]
[1734933738272,0.0021712,95641.0,95640.0,0.30634471]
[1734933739840,0.0001712,95641.0,95640.0,0.30634471]
[1734933740092,0.0021712,95641.0,95640.0,0.30634471]
[1734933740687,0.0001712,95641.0,95640.0,0.30634471]
[1734933741470,0.0021712,95641.0,95640.0,0.30634471]
[1734933742448,0.0021712,95641.0,95640.0,0.25684471]
[1734933743487,0.0001712,95641.0,95640.0,0.25684471]
[1734933743832,0.0021712,95641.0,95640.0,0.25684471]
[1734933744256,0.0021712,95641.0,95640.0,0.10684471]
[1734933744453,0.0021712,95641.0,95640.0,0.17644471]
[1734933744590,0.0021712,95641.0,95640.0,0.15]
[1734933745406,0.0021712,95641.0,95640.0,0.17644471]
[1734933745833,0.0001712,95641.0,95640.0,0.17644471]
[1734933746095,0.0021712,95641.0,95640.0,0.17749018]
[1734933746416,0.0021712,95641.0,95640.0,0.15]
[1734933746621,0.0001712,95641.0,95640.0,0.02644471]
[1734933746970,0.0021712,95641.0,95640.0,0.02644471]
[1734933747800,0.0021712,95641.0,95633.0,0.01072878]
[1734933748011,0.209119,95639.0,95631.0,8.56e-05]
[1734933748423,0.209133,95633.0,95631.0,8.56e-05]
[1734933748776,0.1013084,95632.0,95631.0,8.56e-05]
[1734933748911,0.1790084,95632.0,95631.0,8.56e-05]
[1734933749808,0.1790084,95632.0,95631.0,0.0090856]
[1734933750014,0.1790084,95632.0,95631.0,0.0040856]
[1734933750373,0.1790084,95632.0,95631.0,0.0130856]
[1734933751881,0.1790084,95632.0,95631.0,8.56e-05]
[1734933752092,0.1790084,95632.0,95631.0,0.0040856]
[1734933752345,0.1790084,95632.0,95631.0,0.0050856]
[1734933752573,0.209158,95622.0,95612.0,0.0127015]
[1734933752782,0.209161,95620.0,95613.0,0.00016039]
[1734933752991,0.1013084,95619.0,95613.0,0.00016039]
[1734933754875,0.209146,95627.0,95613.0,0.00016039]
[1734933755087,0.1013084,95626.0,95613.0,0.00016039]
[1734933755924,0.1013084,95626.0,95613.0,0.00116039]
[1734933756154,0.1013084,95626.0,95613.0,0.00416039]
[1734933756332,0.20915,95625.0,95613.0,0.00016039]
[1734933757303,0.1024796,95626.0,95613.0,0.00016039]
[1734933757917,0.1014796,95626.0,95613.0,0.00016039]
[1734933758962,0.20915,95625.0,95613.0,0.00016039]
[1734933759367,0.1014796,95626.0,95613.0,0.00016039]
[1734933759542,0.0001712,95626.0,95613.0,0.00120618]
[1734933759746,0.0001712,95626.0,95616.0,0.20917]
[1734933760847,0.0001712,95626.0,95613.0,0.00016039]
[1734933761055,0.0001712,95626.0,95613.0,0.00120616]
[1734933761256,0.20915,95625.0,95613.0,0.00120616]
[1734933761459,0.1013084,95624.0,95613.0,0.00016039]
[1734933761741,0.12610319,95623.0,95613.0,0.00016039]
[1734933761953,0.209161,95620.0,95613.0,0.00016039]
[1734933762156,0.1013084,95619.0,95613.0,0.00016039]
[1734933762719,0.1013084,95619.0,95616.0,0.002]
[1734933762918,0.1013084,95619.0,95613.0,0.00016039]
[1734933763113,0.12216874,95619.0,95613.0,0.00316039]
[1734933763549,0.12216874,95619.0,95613.0,0.00016039]
[1734933763761,0.33133174,95619.0,95616.0,0.003]
[1734933763961,0.54049574,95619.0,95616.0,0.003]
[1734933764175,0.54049574,95619.0,95613.0,0.00016039]
[1734933764326,0.0462,95616.0,95613.0,0.00016039]
[1734933764731,0.0462,95616.0,95613.0,0.00416039]
[1734933764732,0.3104804,95615.0,95613.0,0.00416039]
[1734933764938,0.2690069,95614.0,95613.0,0.00416039]
[1734933765146,0.2920069,95614.0,95613.0,0.00316039]
[1734933765745,0.2920069,95614.0,95613.0,0.00016039]
[1734933766172,0.2930069,95614.0,95613.0,0.00016039]
[1734933766386,0.3930069,95614.0,95613.0,0.00016039]
[1734933766802,0.3940069,95614.0,95613.0,0.00016039]
[1734933767296,0.5694745,95613.0,95612.0,9.9e-07]
[1734933767519,0.209246,95581.0,95575.0,0.02438643]
[1734933767738,0.209246,95581.0,95580.0,0.00053424]
[1734933769335,0.209246,95581.0,95580.0,0.00353424]
[1734933769510,0.209246,95581.0,95580.0,0.01053424]
[1734933769724,0.3105544,95581.0,95580.0,0.01053424]
[1734933769934,0.1013084,95581.0,95580.0,0.01053424]
[1734933781814,0.1014798,95581.0,95580.0,0.01053424]
[1734933788696,0.4178783,95581.0,95580.0,0.01053424]
[1734933788903,0.0872985,95576.0,95575.0,0.02447203]
[1734933789112,0.4166069,95576.0,95575.0,0.02463284]
[1734933790499,0.4186069,95576.0,95575.0,0.02463284]
[1734933790690,0.4216069,95576.0,95575.0,0.02463284]
[1734933791626,0.4196069,95576.0,95575.0,0.02463284]
[1734933792148,0.43603501,95576.0,95575.0,0.02463284]
[1734933792351,0.43603501,95576.0,95575.0,0.01163282]
[1734933792774,0.45903501,95576.0,95575.0,0.01163282]
[1734933794099,0.55903501,95576.0,95575.0,0.01163282]
[1734933794526,0.60693501,95576.0,95575.0,0.01163282]
[1734933794897,0.5695575,95575.0,95574.0,4.2e-07]
[1734933795103,0.7947659,95575.0,95574.0,4.2e-07]
[1734933795302,0.82708947,95575.0,95574.0,4.2e-07]
[1734933796205,0.8007659,95575.0,95574.0,4.2e-07]
[1734933796408,0.3751105,95551.0,95550.0,8.56e-05]
[1734933796633,0.4764189,95551.0,95550.0,0.00024666]
[1734933797327,0.3106204,95551.0,95550.0,0.00024666]
[1734933797751,0.3979189,95551.0,95550.0,0.00024666]
[1734933798382,0.3126204,95551.0,95550.0,0.00024666]
[1734933798780,0.32334569,95551.0,95550.0,0.00024666]
[1734933799624,0.41364419,95551.0,95550.0,0.00024666]
[1734933800693,0.434834,95551.0,95550.0,0.00024666]
[1734933804640,0.584834,95551.0,95550.0,0.00024666]
[1734933806046,0.4975355,95551.0,95550.0,0.00024666]
[1734933806260,0.3475355,95551.0,95550.0,0.00024666]
[1734933806471,0.3156204,95551.0,95550.0,0.00024666]
[1734933806683,0.1063084,95551.0,95550.0,0.00024666]
[1734933806889,0.005,95551.0,95550.0,0.00024666]
[1734933807300,0.003,95551.0,95550.0,0.00024666]
[1734933807516,0.209299,95557.0,95547.0,0.00304666]
[1734933807693,0.003,95551.0,95547.0,0.00304666]
[1734933808116,0.002,95551.0,95547.0,0.00304666]
[1734933808318,0.002,95551.0,95550.0,0.001]
[1734933808706,0.1013084,95556.0,95547.0,0.00304666]
[1734933808883,0.1013084,95556.0,95548.0,0.209318]
[1734933809262,0.00016064,95557.0,95548.0,0.0466]
[1734933809468,0.00016064,95557.0,95553.0,0.418612]
[1734933809663,0.00016064,95557.0,95555.0,0.2220045]
[1734933809869,0.00016064,95557.0,95556.0,0.00104635]
[1734933810429,0.00016064,95557.0,95556.0,0.07674635]
[1734933811762,0.00116064,95557.0,95556.0,0.08374635]
[1734933812168,0.00116064,95557.0,95556.0,0.08674635]
[1734933814487,0.00116064,95557.0,95556.0,0.09944785]
[1734933815654,0.0001714,95581.0,95573.0,0.3452655]
[1734933816878,0.0011712,95574.0,95573.0,0.3452655]
[1734933817299,0.0021712,95574.0,95573.0,0.3542655]
[1734933817452,0.0021712,95574.0,95573.0,0.3452655]
[1734933817654,0.0011712,95574.0,95573.0,0.3452655]
[1734933817856,0.0021712,95574.0,95573.0,0.3532655]
[1734933818259,0.0001712,95574.0,95573.0,0.3452655]
[1734933818458,0.0011712,95574.0,95573.0,0.3542655]
[1734933818669,0.0011712,95574.0,95573.0,0.7105739]
[1734933818904,0.0001712,95574.0,95573.0,0.7015739]
[1734933819136,0.0001712,95574.0,95573.0,0.70698772]
[1734933819609,0.0001712,95574.0,95573.0,0.71098772]
[1734933819960,0.0001712,95574.0,95573.0,0.70698772]
[1734933820207,0.0011712,95574.0,95573.0,0.71598772]
[1734933820381,0.0011712,95574.0,95573.0,0.71998772]
[1734933820638,0.0001712,95574.0,95573.0,0.71098772]
[1734933820854,0.0011712,95574.0,95573.0,0.71998772]
[1734933821061,0.0011712,95574.0,95573.0,0.74298772]
[1734933821457,0.0021712,95574.0,95573.0,0.75198772]
[1734933821587,0.0021712,95574.0,95573.0,0.74798772]
[1734933821794,0.0001712,95574.0,95573.0,0.73398772]
[1734933822017,0.0001712,95574.0,95573.0,0.73998772]
[1734933822362,0.0001712,95574.0,95573.0,0.73598772]
[1734933822701,0.0021712,95574.0,95573.0,0.73598772]
[1734933823120,0.0001712,95574.0,95573.0,0.73598772]
[1734933823462,0.0021712,95574.0,95573.0,0.72998772]
[1734933823704,0.0061712,95574.0,95573.0,0.72998772]
[1734933824338,0.0111712,95574.0,95573.0,0.72998772]
[1734933824560,0.0021712,95574.0,95573.0,0.72998772]
[1734933824771,0.0021712,95574.0,95573.0,0.70698772]
[1734933824772,0.0001712,95574.0,95573.0,0.70698772]
[1734933825083,0.0041712,95574.0,95573.0,0.50567932]
[1734933825905,0.0031712,95574.0,95573.0,0.49297782]
[1734933826108,0.0061712,95574.0,95573.0,0.49297782]
[1734933826550,0.0031712,95574.0,95573.0,0.49297782]
[1734933826984,0.0001712,95574.0,95573.0,0.05651382]
[1734933827199,0.0001712,95574.0,95573.0,0.15104619]
[1734933827417,0.0051712,95574.0,95573.0,0.16374769]
[1734933827599,0.0001712,95574.0,95573.0,0.16374769]
[1734933827947,0.0011712,95574.0,95573.0,0.16004619]
[1734933828146,0.0011712,95574.0,95573.0,0.15104619]
[1734933828365,0.0001712,95574.0,95572.0,0.02336202]
[1734933828567,0.0021712,95574.0,95573.0,0.007]
[1734933828771,0.0021712,95574.0,95570.0,0.209268]
[1734933828772,0.0011712,95574.0,95570.0,0.209268]
[1734933828967,0.0001712,95574.0,95570.0,0.209268]
[1734933829175,0.0001712,95574.0,95570.0,0.21984474]
[1734933829381,0.0001712,95574.0,95573.0,0.004]
[1734933829790,0.0001712,95574.0,95570.0,0.01057674]
[1734933830068,0.0001712,95574.0,95570.0,0.154]
[1734933830445,0.0011712,95574.0,95573.0,0.009]
[1734933830646,0.0011712,95574.0,95571.0,0.209268]
[1734933830647,0.0001712,95574.0,95571.0,0.209268]
[1734933831004,0.0011712,95574.0,95571.0,0.209268]
[1734933831631,0.0021712,95574.0,95573.0,0.009]
[1734933831976,0.0001712,95574.0,95573.0,0.003]
[1734933832176,0.0001712,95574.0,95573.0,0.01674769]
[1734933832376,0.0011712,95574.0,95573.0,0.01674769]
[1734933832612,0.0011712,95574.0,95573.0,0.01374769]
[1734933832938,0.0011712,95574.0,95573.0,0.00104619]
[1734933833137,0.0011712,95574.0,95573.0,0.01374769]
[1734933833352,0.0011712,95574.0,95573.0,0.00104619]
[1734933833539,0.0001712,95574.0,95572.0,0.00104619]
[1734933833936,0.0011712,95574.0,95573.0,0.009]
[1734933834192,0.0011712,95574.0,95563.0,0.047]
[1734933834589,0.0021712,95574.0,95573.0,0.007]
[1734933835129,0.0021712,95574.0,95573.0,0.003]
[1734933835130,0.0001712,95574.0,95573.0,0.003]
[1734933835282,0.0011712,95574.0,95573.0,0.012]
[1734933835613,0.0011712,95574.0,95573.0,0.009]
[1734933836114,0.0011712,95574.0,95573.0,0.01]
[1734933836344,0.0011712,95574.0,95573.0,0.009]
[1734933836694,0.0001712,95574.0,95573.0,0.001]
[1734933836898,0.0001712,95574.0,95573.0,0.003]
[1734933837303,0.0001712,95574.0,95573.0,0.001]
[1734933837537,0.0001712,95574.0,95573.0,0.003]
[1734933838152,0.1014796,95574.0,95573.0,0.003]
[1734933839006,0.1014796,95574.0,95573.0,0.002]
[1734933839798,0.418528,95573.0,95557.0,0.01067358]
[1734933840028,0.1013084,95572.0,95557.0,0.01067358]
[1734933840246,0.209268,95571.0,95557.0,0.01067358]
[1734933840381,0.209272,95569.0,95557.0,0.01067358]
[1734933841180,0.0001712,95574.0,95557.0,0.01067358]
[1734933841181,0.209287,95563.0,95557.0,0.0010856]
[1734933841577,0.209291,95561.0,95557.0,8.56e-05]
[1734933841709,0.3105994,95561.0,95557.0,0.0030856]
[1734933841911,0.5198914,95561.0,95557.0,0.0030856]
[1734933842316,0.209294,95559.0,95557.0,0.0050856]
[1734933842666,0.1013084,95558.0,95557.0,0.0050856]
[1734933842813,0.1013084,95558.0,95557.0,0.0030856]
[1734933843270,0.1013084,95558.0,95557.0,0.0020856]
[1734933843692,0.1013084,95558.0,95557.0,0.0070856]
[1734933843893,0.1013084,95558.0,95557.0,0.0020856]
[1734933844405,0.1013084,95558.0,95557.0,0.0060856]
[1734933844606,0.1013084,95558.0,95557.0,0.0020856]
[1734933844821,0.1013084,95558.0,95557.0,0.0060856]
[1734933845014,0.1013084,95558.0,95557.0,0.0040856]
[1734933845447,0.1013084,95558.0,95557.0,0.0050856]
[1734933849412,0.2094342,95574.0,95557.0,0.0050856]
[1734933849413,0.209268,95571.0,95557.0,0.0050856]
[1734933849616,0.1013084,95570.0,95557.0,0.0050856]
[1734933850425,0.1013084,95570.0,95557.0,0.0040856]
[1734933850771,0.1013084,95570.0,95557.0,0.2093836]
[1734933850951,0.1033084,95570.0,95557.0,0.2093836]
[1734933851583,0.1043084,95570.0,95558.0,0.209296]
[1734933852401,0.1043084,95570.0,95559.0,0.209294]
[1734933852647,0.003,95570.0,95564.0,0.418563]
[1734933852783,0.001,95570.0,95564.0,0.418563]
[1734933853189,0.003,95570.0,95564.0,0.418563]
[1734933853394,0.001,95570.0,95564.0,0.418563]
[1734933853595,0.0001712,95574.0,95564.0,0.209281]
[1734933853795,0.003,95570.0,95564.0,0.209281]
[1734933854036,0.003,95570.0,95564.0,0.418564]
[1734933854252,0.002,95570.0,95564.0,0.418564]
[1734933854555,0.003,95570.0,95564.0,0.418564]
[1734933856248,0.003,95570.0,95564.0,0.209281]
[1734933856568,0.003,95570.0,95564.0,0.21999427]
[1734933857846,0.003,95570.0,95564.0,0.209281]
[1734933858072,0.003,95570.0,95567.0,0.0481]
[1734933858300,0.003,95570.0,95568.0,0.00104626]
[1734933858725,0.003,95570.0,95568.0,0.21032126]
[1734933859556,0.001,95570.0,95566.0,0.209279]
[1734933859785,0.0001712,95574.0,95566.0,0.209279]
[1734933859914,0.001,95570.0,95566.0,0.209279]
[1734933860343,0.002,95570.0,95563.0,0.209285]
[1734933860767,0.001,95570.0,95563.0,0.209285]
[1734933860999,0.1763084,95569.0,95543.0,0.045]
[1734933861179,0.1763084,95569.0,95544.0,0.2094115]
[1734933861389,0.22982921,95558.0,95544.0,8.55e-05]
[1734933861566,0.22982921,95558.0,95544.0,0.09355009]
[1734933861567,0.40613761,95558.0,95544.0,0.09355009]
[1734933861767,0.40613761,95558.0,95545.0,0.0105149]
[1734933862340,0.40613761,95558.0,95544.0,0.09355009]
[1734933862651,0.40613761,95558.0,95544.0,8.55e-05]
[1734933863142,0.40613761,95558.0,95557.0,0.0040856]
[1734933864008,0.40613761,95558.0,95557.0,0.0050856]
[1734933864959,0.40613761,95558.0,95557.0,0.0040856]
[1734933865512,0.40613761,95558.0,95557.0,8.56e-05]
[1734933865628,0.40613761,95558.0,95557.0,0.0020856]
[1734933866447,0.40613761,95558.0,95557.0,8.56e-05]
[1734933866760,0.40613761,95558.0,95557.0,0.0020856]
[1734933866985,0.40613761,95558.0,95557.0,0.0030856]
[1734933868384,0.45243761,95558.0,95557.0,0.0010856]
[1734933868837,0.45243761,95558.0,95557.0,0.0030856]
[1734933869433,0.45243761,95558.0,95557.0,0.0010856]
[1734933869792,0.80239485,95558.0,95557.0,8.56e-05]
[1734933870009,0.85783066,95558.0,95557.0,8.56e-05]
[1734933870214,0.82539485,95558.0,95557.0,8.56e-05]
[1734933870416,0.85782572,95558.0,95557.0,8.56e-05]
[1734933870840,0.85882572,95558.0,95557.0,6e-07]
[1734933871663,1.04654363,95558.0,95557.0,6e-07]
[1734933871995,1.04454363,95558.0,95557.0,6e-07]
[1734933872195,1.04354363,95558.0,95557.0,6e-07]
[1734933872464,1.05154363,95558.0,95557.0,0.0010006]
[1734933872674,0.86082572,95558.0,95557.0,6e-07]
[1734933873105,0.86482572,95558.0,95557.0,0.0010006]
[1734933873212,0.85582572,95558.0,95557.0,6e-07]
[1734933873416,0.86082572,95558.0,95557.0,6e-07]
[1734933873909,0.85582572,95558.0,95557.0,6e-07]
[1734933874266,0.82839485,95558.0,95557.0,6e-07]
[1734933874468,1.01609105,95558.0,95557.0,6e-07]
[1734933874841,1.02409105,95558.0,95557.0,0.0010006]
[1734933875303,1.01609105,95558.0,95557.0,6e-07]
[1734933875461,1.02509105,95558.0,95557.0,0.0010006]
[1734933875856,1.01609105,95558.0,95557.0,6e-07]
[1734933876154,1.01909105,95558.0,95557.0,0.0010006]
[1734933876336,1.02309105,95558.0,95557.0,0.0010006]
[1734933876535,1.01509105,95558.0,95557.0,6e-07]
[1734933876844,0.82339485,95558.0,95557.0,6e-07]
[1734933877255,0.82839485,95558.0,95557.0,6e-07]
[1734933877647,0.82339485,95558.0,95557.0,6e-07]
[1734933877851,1.02009105,95558.0,95557.0,0.0010006]
[1734933878055,1.01109105,95558.0,95557.0,6e-07]
[1734933878431,1.01926225,95558.0,95557.0,0.0010006]
[1734933878653,1.01926225,95558.0,95557.0,6e-07]
[1734933878865,1.02326225,95558.0,95557.0,6e-07]
[1734933879301,1.02326225,95558.0,95557.0,0.0010006]
[1734933879302,1.03226225,95558.0,95557.0,0.0010006]
[1734933879615,1.02826225,95558.0,95557.0,0.0010006]
[1734933879821,1.03326225,95558.0,95557.0,0.0010006]
[1734933881137,0.84556605,95558.0,95557.0,0.0010006]
[1734933882472,0.98624536,95558.0,95557.0,0.0010006]
[1734933884764,0.93934573,95558.0,95557.0,0.0010006]
[1734933886413,0.83934573,95558.0,95557.0,0.0010006]
[1734933886620,0.72256605,95558.0,95557.0,0.0010006]
[1734933887186,0.71756605,95558.0,95557.0,0.0010006]
[1734933887623,0.70056605,95558.0,95557.0,6e-07]
[1734933887833,0.70956605,95558.0,95557.0,0.0010006]
[1734933888423,0.66326605,95558.0,95557.0,0.0010006]
[1734933888577,0.66826605,95558.0,95557.0,0.0010006]
[1734933888988,0.66326605,95558.0,95557.0,0.0010006]
[1734933889365,0.66726605,95558.0,95557.0,0.0010006]
[1734933889915,0.66326605,95558.0,95557.0,0.0010006]
[1734933890216,0.66726605,95558.0,95557.0,0.0010006]
[1734933890412,0.65826605,95558.0,95557.0,6e-07]
[1734933890759,0.66726605,95558.0,95557.0,0.0010006]
[1734933890960,0.79026605,95558.0,95557.0,0.0010006]
[1734933891167,0.78126605,95558.0,95557.0,6e-07]
[1734933891602,0.79026605,95558.0,95557.0,0.0010006]
[1734933892060,0.78626605,95558.0,95557.0,0.0010006]
[1734933892466,0.79026605,95558.0,95557.0,0.0010006]
[1734933892974,0.78626605,95558.0,95557.0,0.0010006]
[1734933893346,0.79026605,95558.0,95557.0,0.0010006]
[1734933893547,0.78126605,95558.0,95557.0,6e-07]
[1734933893960,0.79026605,95558.0,95557.0,0.0010006]
[1734933895408,0.82269844,95558.0,95557.0,0.0010006]
[1734933897539,0.82269844,95558.0,95513.0,0.00104686]
[1734933897540,0.1,95534.0,95508.0,0.0127015]
[1734933897919,0.209437,95494.0,95479.0,8.56e-05]
[1734933898139,0.209437,95494.0,95493.0,0.09346459]
[1734933899185,0.3107454,95494.0,95493.0,0.09346459]
[1734933899380,0.3107454,95494.0,95492.0,0.00016064]
[1734933899588,0.1013084,95493.0,95492.0,0.00016064]
[1734933901801,0.1043084,95493.0,95492.0,0.00016064]
[1734933901994,0.1013084,95493.0,95492.0,0.00016064]
[1734933902398,0.1053084,95493.0,95492.0,0.00016064]
[1734933902827,0.1023084,95493.0,95492.0,0.00016064]
[1734933903033,0.1013084,95493.0,95492.0,0.00016064]
[1734933903237,0.1023084,95493.0,95492.0,0.00016064]
[1734933903895,0.1023084,95493.0,95492.0,0.00024624]
[1734933904769,0.1033084,95493.0,95492.0,0.00024624]
[1734933904985,0.1013084,95493.0,95492.0,0.00024624]
[1734933905185,0.1033084,95493.0,95492.0,0.00024624]
[1734933905376,0.1053084,95493.0,95492.0,0.00024624]
[1734933905520,0.1033084,95493.0,95492.0,0.00024624]
[1734933905713,0.1013084,95493.0,95492.0,0.00024624]
[1734933905914,0.1033084,95493.0,95492.0,0.00024624]
[1734933906141,0.1053084,95493.0,95492.0,0.00024624]
[1734933906370,0.1033084,95493.0,95492.0,0.00024624]
[1734933906687,0.1023084,95493.0,95492.0,0.00024624]
[1734933907533,0.209465,95482.0,95471.0,0.02851893]
[1734933907715,0.1013084,95481.0,95479.0,0.00053689]
[1734933908956,0.1013084,95481.0,95479.0,0.00153689]
[1734933909373,0.1013084,95481.0,95479.0,0.00453689]
[1734933910735,0.3107754,95481.0,95479.0,0.00453689]
[1734933911766,0.3107754,95481.0,95479.0,0.00353689]
[1734933912198,0.3107754,95481.0,95479.0,0.00153689]
[1734933912509,0.1013084,95481.0,95459.0,0.03492258]
[1734933912743,0.209499,95466.0,95459.0,0.03508358]
[1734933912960,0.3108074,95466.0,95459.0,0.03508358]
[1734933913347,0.12610319,95470.0,95459.0,0.000161]
[1734933913348,0.1013084,95465.0,95459.0,0.000161]
[1734933913766,0.20951,95461.0,95459.0,0.000161]
[1734933913934,0.1013084,95460.0,95459.0,0.000161]
[1734933914768,0.1013084,95460.0,95459.0,0.002161]
[1734933915097,0.1013084,95460.0,95459.0,0.001161]
[1734933915467,0.1023084,95460.0,95459.0,0.004161]
[1734933915826,0.1023084,95460.0,95459.0,0.006161]
[1734933917366,0.1023084,95460.0,95459.0,0.004161]
[1734933917572,0.1023084,95460.0,95459.0,0.006161]
[1734933917777,0.1013084,95460.0,95459.0,0.002161]
[1734933918351,0.1023084,95460.0,95459.0,0.004161]
[1734933918557,0.1013084,95460.0,95459.0,0.000161]
[1734933918734,0.1023084,95460.0,95459.0,0.004]
[1734933919124,0.1023084,95460.0,95459.0,0.006]
[1734933926109,0.1073084,95460.0,95459.0,0.006]
[1734933926761,0.1073084,95460.0,95459.0,0.0060857]
[1734933926973,0.1074798,95460.0,95459.0,0.0060857]
[1734933928260,0.1074798,95460.0,95459.0,0.0040857]
[1734933928491,0.1074798,95460.0,95459.0,0.0060857]
[1734933928694,0.1064798,95460.0,95459.0,0.0020857]
[1734933928872,0.1074798,95460.0,95459.0,0.0060857]
[1734933938102,0.1880798,95460.0,95459.0,0.0060857]
[1734933939126,0.1880798,95460.0,95459.0,0.0020857]
[1734933939351,0.1870798,95460.0,95459.0,0.0020857]
[1734933939546,0.1870798,95460.0,95459.0,0.0050857]
[1734933939850,0.1870798,95460.0,95459.0,0.0030857]
[1734933940212,0.1870798,95460.0,95459.0,0.0050857]
[1734933940441,0.1870798,95460.0,95446.0,8.57e-05]
[1734933940442,0.1,95451.0,95446.0,8.57e-05]
[1734933940653,0.3914484,95447.0,95446.0,0.00024689]
[1734933940850,0.3914484,95447.0,95446.0,9.12e-05]
[1734933941173,0.42393837,95447.0,95446.0,9.12e-05]
[1734933941375,0.5144484,95447.0,95446.0,9.12e-05]
[1734933941585,0.5599484,95447.0,95446.0,9.12e-05]
[1734933941829,0.8099484,95447.0,95446.0,0.0010912]
[1734933942032,0.7099484,95447.0,95446.0,0.0010912]
[1734933942455,0.7189484,95447.0,95446.0,0.0010912]
[1734933942881,0.7309111,95447.0,95446.0,0.0010912]
[1734933943298,0.6309111,95447.0,95446.0,0.0010912]
[1734933943469,0.6309111,95447.0,95446.0,9.12e-05]
[1734933943710,0.7309111,95447.0,95446.0,9.12e-05]
[1734933944046,0.7359111,95447.0,95446.0,9.12e-05]
[1734933944213,0.7399111,95447.0,95446.0,9.12e-05]
[1734933944590,0.7449111,95447.0,95446.0,0.0010912]
[1734933944990,0.7359111,95447.0,95446.0,0.0010912]
[1734933945191,0.75192706,95447.0,95446.0,0.0010912]
[1734933945499,0.76092706,95447.0,95446.0,0.0010912]
[1734933945703,0.75192706,95447.0,95446.0,0.0010912]
[1734933946486,0.76092706,95447.0,95446.0,0.0010912]
[1734933947365,0.76092706,95447.0,95444.0,7e-05]
[1734933947366,0.1,95439.0,95411.0,0.21370015]
[1734933947583,0.209586,95427.0,95411.0,0.21370015]
[1734933947786,0.1013084,95426.0,95411.0,0.21370015]
[1734933947963,0.209588,95425.0,95411.0,0.00408315]
[1734933948177,0.1013084,95424.0,95405.0,0.00104804]
[1734933948377,0.209607,95417.0,95405.0,0.00104804]
[1734933948586,0.209607,95417.0,95399.0,0.075]
[1734933948587,0.20961,95415.0,95399.0,0.075]
[1734933948762,0.00104764,95414.0,95399.0,0.075]
[1734933948964,0.3109234,95413.0,95399.0,0.075]
[1734933949192,0.00104764,95412.0,95399.0,0.075]
[1734933949404,0.1013084,95411.0,95399.0,0.075]
[1734933949647,0.00104764,95410.0,95399.0,0.075]
[1734933949796,0.10235604,95410.0,95399.0,0.075]
[1734933950490,0.10235604,95410.0,95399.0,0.0750856]
[1734933950945,0.10235604,95410.0,95399.0,0.0770856]
[1734933951148,0.10235604,95410.0,95399.0,0.0780856]
[1734933951349,0.1013084,95410.0,95399.0,0.07913375]
[1734933951574,0.209598,95421.0,95402.0,0.209637]
[1734933951808,0.1013084,95420.0,95402.0,0.209637]
[1734933952017,0.00104764,95419.0,95402.0,0.209637]
[1734933952215,0.1013084,95418.0,95402.0,0.209637]
[1734933952422,0.00104764,95417.0,95402.0,0.209637]
[1734933952623,0.1013084,95416.0,95402.0,0.419276]
[1734933953061,0.001,95410.0,95403.0,0.00104808]
[1734933953288,0.001,95410.0,95404.0,0.209634]
[1734933954599,0.1013084,95416.0,95404.0,0.209634]
[1734933955571,0.1013084,95416.0,95404.0,0.419268]
[1734933955781,0.1013084,95416.0,95404.0,0.420268]
[1734933955990,0.209585,95427.0,95410.0,0.209621]
[1734933956210,0.10235604,95426.0,95410.0,0.209621]
[1734933957125,0.209588,95425.0,95410.0,0.209621]
[1734933957275,0.209593,95423.0,95405.0,0.209632]
[1734933957626,0.10235604,95422.0,95407.0,0.209628]